[Event "*** Titled Tuesday Blitz"]
[Site "Chess.com"]
[Date "2020.11.03"]
[Round "4"]
[White "Shield12"]
[Black "crywolf1986"]
[Result "1-0"]
[WhiteElo "2909"]
[BlackElo "2573"]
[TimeControl "180+1"]
[EndTime "10:43:37 PST"]
[Termination "Shield12 won by resignation"]

1. e4 {[%clk 0:03:00.9]} 1... c6 {[%clk 0:02:58.4]} 2. d4 {[%clk 0:03:01.3]}
2... d5 {[%clk 0:02:58.7]} 3. exd5 {[%clk 0:03:02.2]} 3... cxd5 {[%clk
0:02:58.4]} 4. Bd3 {[%clk 0:03:03.1]} 4... Nc6 {[%clk 0:02:58.4]} 5. c3 {[%clk
0:03:03.5]} 5... Qc7 {[%clk 0:02:58.5]} 6. h3 {[%clk 0:03:03.9]} 6... g6 {[%clk
0:02:58.3]} 7. Nf3 {[%clk 0:03:04.5]} 7... Bf5 {[%clk 0:02:57.7]} 8. Be2 {[%clk
0:03:04.6]} 8... Nf6 {[%clk 0:02:57.6]} 9. O-O {[%clk 0:03:05]} 9... Bg7 {[%clk
0:02:57.4]} 10. Be3 {[%clk 0:03:05.2]} 10... O-O {[%clk 0:02:57]} 11. Nbd2
{[%clk 0:03:06.1]} 11... Rac8 {[%clk 0:02:56.2]} 12. Nb3 {[%clk 0:03:06.4]}
12... Rfd8 {[%clk 0:02:53.7]} 13. Qc1 {[%clk 0:03:06.6]} 13... Ne4 {[%clk
0:02:52.9]} 14. Bf4 {[%clk 0:03:06.7]} 14... e5 {[%clk 0:02:48.4]} 15. dxe5
{[%clk 0:03:05]} 15... Nxe5 {[%clk 0:02:47.8]} 16. Nxe5 {[%clk 0:02:58.7]} 16...
Bxe5 {[%clk 0:02:46.8]} 17. Bxe5 {[%clk 0:02:59]} 17... Qxe5 {[%clk 0:02:47.5]}
18. Qe3 {[%clk 0:02:58.6]} 18... Re8 {[%clk 0:02:38.8]} 19. Rad1 {[%clk
0:02:53]} 19... Nc5 {[%clk 0:02:35.1]} 20. Qxe5 {[%clk 0:02:43.8]} 20... Rxe5
{[%clk 0:02:36]} 21. Nd4 {[%clk 0:02:43.5]} 21... Ne6 {[%clk 0:02:15.8]} 22.
Nxf5 {[%clk 0:02:35.5]} 22... gxf5 {[%clk 0:02:07.7]} 23. Bf3 {[%clk 0:02:31.5]}
23... Rd8 {[%clk 0:02:02.8]} 24. Rd2 {[%clk 0:02:29.6]} 24... d4 {[%clk
0:01:55.6]} 25. Rfd1 {[%clk 0:02:23.8]} 25... Kg7 {[%clk 0:01:29.1]} 26. cxd4
{[%clk 0:02:15.2]} 26... Rb5 {[%clk 0:01:27.9]} 27. d5 {[%clk 0:02:13.6]} 27...
Ng5 {[%clk 0:01:27.4]} 28. Be2 {[%clk 0:02:10.3]} 28... Rb6 {[%clk 0:01:24.6]}
29. f3 {[%clk 0:02:05.1]} 29... f6 {[%clk 0:01:21.9]} 30. d6 {[%clk 0:01:49.9]}
30... Rd7 {[%clk 0:01:08.2]} 31. Bc4 {[%clk 0:01:46.4]} 31... f4 {[%clk
0:01:06.9]} 32. Rd4 {[%clk 0:01:30.5]} 32... Nf7 {[%clk 0:01:05.4]} 33. Bxf7
{[%clk 0:01:20.1]} 33... Kxf7 {[%clk 0:01:04.6]} 34. R1d2 {[%clk 0:01:18.1]}
34... Ke6 {[%clk 0:00:56.7]} 35. Re4+ {[%clk 0:01:16.6]} 35... Kf7 {[%clk
0:00:56]} 36. Rxf4 {[%clk 0:01:08.5]} 36... Rdxd6 {[%clk 0:00:52.3]} 37. Rxd6
{[%clk 0:01:07.9]} 37... Rxd6 {[%clk 0:00:53.2]} 38. Rb4 {[%clk 0:01:04.3]}
38... b6 {[%clk 0:00:52.6]} 39. Kf2 {[%clk 0:00:58.4]} 39... Rd2+ {[%clk
0:00:50.1]} 40. Kg3 {[%clk 0:00:58.7]} 40... Kg6 {[%clk 0:00:46.8]} 41. h4
{[%clk 0:00:55.3]} 41... h5 {[%clk 0:00:46.1]} 42. Rb5 {[%clk 0:00:54.8]} 42...
Rc2 {[%clk 0:00:42.7]} 43. a4 {[%clk 0:00:54]} 43... Rd2 {[%clk 0:00:41.2]} 44.
Kh3 {[%clk 0:00:52.8]} 44... Rf2 {[%clk 0:00:39.7]} 45. b3 {[%clk 0:00:51.4]}
45... Kh6 {[%clk 0:00:37.4]} 46. Rb4 {[%clk 0:00:38.2]} 46... Kg6 {[%clk
0:00:35.2]} 47. Rc4 {[%clk 0:00:38.4]} 47... Rb2 {[%clk 0:00:34.3]} 48. Rc3
{[%clk 0:00:32.9]} 48... a6 {[%clk 0:00:34.3]} 49. g4 {[%clk 0:00:28.3]} 49...
b5 {[%clk 0:00:34.5]} 50. axb5 {[%clk 0:00:27]} 50... axb5 {[%clk 0:00:35.4]}
51. gxh5+ {[%clk 0:00:26.2]} 51... Kh6 {[%clk 0:00:35.6]} 52. Kg4 {[%clk
0:00:26.2]} 52... b4 {[%clk 0:00:35.6]} 53. Re3 {[%clk 0:00:25.3]} 53... Rb1
{[%clk 0:00:32.3]} 54. Kf5 {[%clk 0:00:24.8]} 54... Kxh5 {[%clk 0:00:32.1]} 55.
Kxf6 {[%clk 0:00:24.5]} 55... Kxh4 {[%clk 0:00:32.1]} 56. f4 {[%clk 0:00:20.5]}
56... Kg4 {[%clk 0:00:30.9]} 57. f5 {[%clk 0:00:20.9]} 57... Kf4 {[%clk
0:00:31.1]} 58. Rh3 {[%clk 0:00:20.1]} 58... Ke4 {[%clk 0:00:30.4]} 59. Rh4+
{[%clk 0:00:20.3]} 59... Kd5 {[%clk 0:00:28.4]} 60. Rxb4 {[%clk 0:00:21.2]}
60... Rh1 {[%clk 0:00:27.5]} 61. Kg7 {[%clk 0:00:21.1]} 61... Rg1+ {[%clk
0:00:26.7]} 62. Kf7 {[%clk 0:00:21]} 62... Ke5 {[%clk 0:00:26.4]} 63. f6 {[%clk
0:00:21.4]} 63... Rf1 {[%clk 0:00:26.5]} 64. Rb5+ {[%clk 0:00:21.5]} 64... Kd6
{[%clk 0:00:26.6]} 65. Kg7 {[%clk 0:00:21.4]} 65... Rg1+ {[%clk 0:00:25.8]} 66.
Kf8 {[%clk 0:00:21.4]} 66... Kd7 {[%clk 0:00:25.7]} 67. f7 {[%clk 0:00:21.5]}
67... Rg4 {[%clk 0:00:25.5]} 68. Re5 {[%clk 0:00:20.4]} 68... Kd8 {[%clk
0:00:25.5]} 69. b4 {[%clk 0:00:20.3]} 69... Kd7 {[%clk 0:00:25.6]} 70. b5 {[%clk
0:00:20.8]} 70... Kd8 {[%clk 0:00:25.3]} 71. b6 {[%clk 0:00:20.6]} 71... Rb4
{[%clk 0:00:25.8]} 72. Kg7 {[%clk 0:00:19.9]} 72... Rg4+ {[%clk 0:00:24.7]} 73.
Kf6 {[%clk 0:00:20.2]} 73... Rf4+ {[%clk 0:00:23.7]} 74. Rf5 {[%clk 0:00:20.6]}
74... Rxf5+ {[%clk 0:00:22.8]} 75. Kxf5 {[%clk 0:00:21.5]} 75... Ke7 {[%clk
0:00:23.6]} 76. b7 {[%clk 0:00:21.8]} 76... Kxf7 {[%clk 0:00:23.2]} 77. b8=Q
{[%clk 0:00:22.7]} 1-0

[Event "*** Titled Tuesday Blitz"]
[Site "Chess.com"]
[Date "2020.11.03"]
[Round "4"]
[White "barriochess"]
[Black "GalperinPlaton"]
[Result "1-0"]
[WhiteElo "2376"]
[BlackElo "2860"]
[TimeControl "180+1"]
[EndTime "10:43:38 PST"]
[Termination "barriochess won by resignation"]

1. d4 {[%clk 0:03:00.9]} 1... Nf6 {[%clk 0:02:58.2]} 2. c4 {[%clk 0:02:58.8]}
2... d6 {[%clk 0:02:58.8]} 3. Nf3 {[%clk 0:02:57.8]} 3... g6 {[%clk 0:02:58.5]}
4. Nc3 {[%clk 0:02:56.9]} 4... Bf5 {[%clk 0:02:58.6]} 5. Nh4 {[%clk 0:02:52.6]}
5... Bd7 {[%clk 0:02:58.1]} 6. g3 {[%clk 0:02:51.3]} 6... e5 {[%clk 0:02:56.1]}
7. Nf3 {[%clk 0:02:48.8]} 7... Nc6 {[%clk 0:02:54.8]} 8. Bg2 {[%clk 0:02:48]}
8... Bg7 {[%clk 0:02:55]} 9. O-O {[%clk 0:02:47.5]} 9... O-O {[%clk 0:02:55.5]}
10. d5 {[%clk 0:02:47.5]} 10... Ne7 {[%clk 0:02:55.3]} 11. e4 {[%clk 0:02:48]}
11... Bg4 {[%clk 0:02:48.7]} 12. h3 {[%clk 0:02:46.9]} 12... Bxf3 {[%clk
0:02:48.3]} 13. Bxf3 {[%clk 0:02:47.8]} 13... a5 {[%clk 0:02:47.2]} 14. a3
{[%clk 0:02:45.5]} 14... Nd7 {[%clk 0:02:47.1]} 15. Be3 {[%clk 0:02:36.7]} 15...
f5 {[%clk 0:02:45.3]} 16. b4 {[%clk 0:02:33.5]} 16... f4 {[%clk 0:02:44.4]} 17.
Bd2 {[%clk 0:02:31.1]} 17... c6 {[%clk 0:02:36.3]} 18. Kg2 {[%clk 0:02:28.5]}
18... Nf6 {[%clk 0:02:29.7]} 19. Qb3 {[%clk 0:02:22.6]} 19... cxd5 {[%clk
0:02:28]} 20. Nxd5 {[%clk 0:02:14.7]} 20... Nexd5 {[%clk 0:02:23.7]} 21. cxd5
{[%clk 0:02:13.1]} 21... a4 {[%clk 0:02:24.1]} 22. Qd3 {[%clk 0:02:09.3]} 22...
g5 {[%clk 0:02:23.8]} 23. g4 {[%clk 0:02:07.3]} 23... Qd7 {[%clk 0:02:23]} 24.
Be2 {[%clk 0:02:05.1]} 24... h5 {[%clk 0:02:18.6]} 25. f3 {[%clk 0:02:05.1]}
25... Kf7 {[%clk 0:02:13.1]} 26. Qb5 {[%clk 0:02:01.5]} 26... Qe7 {[%clk
0:02:13.2]} 27. Rac1 {[%clk 0:01:57]} 27... Kg6 {[%clk 0:02:12.8]} 28. Qb6
{[%clk 0:01:49.7]} 28... Rac8 {[%clk 0:02:11.4]} 29. Bb5 {[%clk 0:01:45.4]}
29... hxg4 {[%clk 0:02:09.1]} 30. hxg4 {[%clk 0:01:45]} 30... Rh8 {[%clk
0:01:58]} 31. Rxc8 {[%clk 0:01:42.3]} 31... Rxc8 {[%clk 0:01:57]} 32. Rc1 {[%clk
0:01:42.3]} 32... Rxc1 {[%clk 0:01:33.9]} 33. Bxc1 {[%clk 0:01:43.2]} 33... Bf8
{[%clk 0:01:24]} 34. Bxa4 {[%clk 0:01:39.4]} 34... Qh7 {[%clk 0:01:13.9]} 35.
Qf2 {[%clk 0:01:36.9]} 35... Qc7 {[%clk 0:01:12.4]} 36. Bd2 {[%clk 0:01:31.1]}
36... Qc4 {[%clk 0:01:11.9]} 37. Qe1 {[%clk 0:01:13.9]} 37... Qd3 {[%clk
0:01:10.2]} 38. Bc1 {[%clk 0:01:09.3]} 38... Be7 {[%clk 0:01:10.5]} 39. Qd1
{[%clk 0:01:06.8]} 39... Qa6 {[%clk 0:01:04.5]} 40. b5 {[%clk 0:01:05.5]} 40...
Qa7 {[%clk 0:01:02.2]} 41. Bc2 {[%clk 0:00:59.4]} 41... Bd8 {[%clk 0:01:01.5]}
42. a4 {[%clk 0:00:47.4]} 42... Ba5 {[%clk 0:00:58]} 43. Ba3 {[%clk 0:00:47.3]}
43... Qe3 {[%clk 0:00:39.7]} 44. Bc1 {[%clk 0:00:32.8]} 44... Qc5 {[%clk
0:00:36.6]} 45. Bd3 {[%clk 0:00:20.1]} 45... Bb6 {[%clk 0:00:36.4]} 46. Qe1
{[%clk 0:00:20.3]} 46... Qd4 {[%clk 0:00:33.4]} 47. Bf1 {[%clk 0:00:19.5]} 47...
Qxa4 {[%clk 0:00:33.1]} 48. Bd2 {[%clk 0:00:19.4]} 48... Qc2 {[%clk 0:00:31.4]}
49. Kh1 {[%clk 0:00:18.3]} 49... Qb2 {[%clk 0:00:27.8]} 50. Bb4 {[%clk
0:00:17.2]} 50... Qd4 {[%clk 0:00:21]} 51. Be2 {[%clk 0:00:15.7]} 51... Qe3
{[%clk 0:00:08.6]} 52. Bxd6 {[%clk 0:00:14.9]} 52... Nxe4 {[%clk 0:00:06.3]} 53.
Qb1 {[%clk 0:00:13.6]} 53... Qxe2 {[%clk 0:00:02.5]} 54. Qxe4+ {[%clk
0:00:13.6]} 54... Qxe4 {[%clk 0:00:02.8]} 55. fxe4 {[%clk 0:00:14.5]} 55... Kf6
{[%clk 0:00:03]} 56. Kg2 {[%clk 0:00:13.9]} 56... Bd4 {[%clk 0:00:02.7]} 57. Kf3
{[%clk 0:00:14.1]} 57... Kf7 {[%clk 0:00:03.2]} 58. Bc7 {[%clk 0:00:11.4]} 58...
Ke7 {[%clk 0:00:03.6]} 59. Ba5 {[%clk 0:00:08.3]} 59... Kd6 {[%clk 0:00:02.4]}
60. Ke2 {[%clk 0:00:08.2]} 60... Bc5 {[%clk 0:00:02.4]} 61. Bd8 {[%clk
0:00:07.6]} 61... Bd4 {[%clk 0:00:01.2]} 62. Bxg5 {[%clk 0:00:08.1]} 62... Kc5
{[%clk 0:00:01.7]} 63. Be7+ {[%clk 0:00:08.1]} 63... Kxb5 {[%clk 0:00:02]} 64.
g5 {[%clk 0:00:08.2]} 64... Bc5 {[%clk 0:00:01.6]} 65. d6 {[%clk 0:00:07.7]}
65... Kc6 {[%clk 0:00:01.4]} 66. g6 {[%clk 0:00:08.1]} 66... Bxd6 {[%clk
0:00:01.3]} 67. Bxd6 {[%clk 0:00:08.3]} 67... Kxd6 {[%clk 0:00:01.8]} 68. g7
{[%clk 0:00:09.2]} 68... Kc5 {[%clk 0:00:02.5]} 69. g8=Q {[%clk 0:00:09.9]}
69... Kd4 {[%clk 0:00:03]} 70. Kf3 {[%clk 0:00:10.3]} 70... Kc3 {[%clk
0:00:03.9]} 71. Qd5 {[%clk 0:00:10.7]} 71... Kb2 {[%clk 0:00:03.9]} 72. Qxe5+
{[%clk 0:00:11.6]} 72... Ka3 {[%clk 0:00:04.8]} 73. Qxf4 {[%clk 0:00:12.2]}
73... b5 {[%clk 0:00:05.5]} 74. Qe5 {[%clk 0:00:12.4]} 74... b4 {[%clk
0:00:06.4]} 75. Qc5 {[%clk 0:00:13]} 75... Ka4 {[%clk 0:00:07.3]} 76. Qxb4+
{[%clk 0:00:13.2]} 76... Kxb4 {[%clk 0:00:07.7]} 77. e5 {[%clk 0:00:13.8]} 77...
Kc5 {[%clk 0:00:08.6]} 78. Ke4 {[%clk 0:00:14.6]} 78... Kc6 {[%clk 0:00:08.8]}
79. Kf5 {[%clk 0:00:15.5]} 79... Kd7 {[%clk 0:00:09.1]} 80. Kf6 {[%clk
0:00:16.4]} 80... Kd8 {[%clk 0:00:09.5]} 81. Ke6 {[%clk 0:00:17.1]} 81... Ke8
{[%clk 0:00:09.2]} 82. Kd6 {[%clk 0:00:17.8]} 82... Kd8 {[%clk 0:00:09.4]} 83.
e6 {[%clk 0:00:17.8]} 83... Ke8 {[%clk 0:00:09.7]} 84. e7 {[%clk 0:00:18.3]}
84... Kf7 {[%clk 0:00:10.4]} 85. Kd7 {[%clk 0:00:19.2]} 1-0

[Event "*** Titled Tuesday Blitz"]
[Site "Chess.com"]
[Date "2020.11.03"]
[Round "4"]
[White "Mazetovic"]
[Black "Susal_De_Silva"]
[Result "1-0"]
[WhiteElo "2754"]
[BlackElo "2518"]
[TimeControl "180+1"]
[EndTime "10:43:39 PST"]
[Termination "Mazetovic won by resignation"]

1. e4 {[%clk 0:03:00.9]} 1... e5 {[%clk 0:02:59.9]} 2. Nf3 {[%clk 0:03:00.7]}
2... Nc6 {[%clk 0:03:00.5]} 3. Bb5 {[%clk 0:02:59]} 3... a6 {[%clk 0:03:00.6]}
4. Ba4 {[%clk 0:02:58.8]} 4... Nf6 {[%clk 0:03:00.3]} 5. Nc3 {[%clk 0:02:58.7]}
5... b5 {[%clk 0:02:58.6]} 6. Bb3 {[%clk 0:02:58.5]} 6... Be7 {[%clk 0:02:59.3]}
7. a4 {[%clk 0:02:58]} 7... b4 {[%clk 0:02:58.5]} 8. Nd5 {[%clk 0:02:57.6]} 8...
O-O {[%clk 0:02:54.2]} 9. Nxf6+ {[%clk 0:02:56.9]} 9... Bxf6 {[%clk 0:02:54.2]}
10. Bd5 {[%clk 0:02:57.1]} 10... Bb7 {[%clk 0:02:52.1]} 11. b3 {[%clk
0:02:55.2]} 11... Na5 {[%clk 0:02:50.6]} 12. Bxb7 {[%clk 0:02:54.7]} 12... Nxb7
{[%clk 0:02:51.5]} 13. d3 {[%clk 0:02:54.1]} 13... d5 {[%clk 0:02:51.2]} 14. Qe2
{[%clk 0:02:52.8]} 14... c5 {[%clk 0:02:47.1]} 15. O-O {[%clk 0:02:40.7]} 15...
c4 {[%clk 0:02:42.1]} 16. dxc4 {[%clk 0:02:38.3]} 16... dxc4 {[%clk 0:02:40.3]}
17. Qxc4 {[%clk 0:02:35.2]} 17... Nd6 {[%clk 0:02:38.8]} 18. Qxb4 {[%clk
0:02:19.2]} 18... a5 {[%clk 0:02:35.4]} 19. Qe1 {[%clk 0:02:17.5]} 19... Qc7
{[%clk 0:02:33.8]} 20. Ba3 {[%clk 0:02:08.6]} 20... Rfd8 {[%clk 0:02:33.5]} 21.
Qe2 {[%clk 0:02:07.1]} 21... Rac8 {[%clk 0:02:31.8]} 22. c4 {[%clk 0:01:59.7]}
22... Qb7 {[%clk 0:02:30.9]} 23. Bxd6 {[%clk 0:01:52.6]} 23... Rxd6 {[%clk
0:02:31.8]} 24. Rab1 {[%clk 0:01:51.9]} 24... Rb6 {[%clk 0:02:30.2]} 25. Qc2
{[%clk 0:01:46.9]} 25... Rb8 {[%clk 0:02:26.3]} 26. c5 {[%clk 0:01:44.1]} 26...
Rc6 {[%clk 0:02:02]} 27. Nd2 {[%clk 0:01:36.5]} 27... Qb4 {[%clk 0:01:57.3]} 28.
Nc4 {[%clk 0:01:34.5]} 28... Rxc5 {[%clk 0:01:55.2]} 29. Rfd1 {[%clk 0:01:33.4]}
29... g6 {[%clk 0:01:51.1]} 30. g3 {[%clk 0:01:30.8]} 30... Kg7 {[%clk
0:01:50.5]} 31. Kg2 {[%clk 0:01:30.6]} 31... Qb7 {[%clk 0:01:48.1]} 32. h4
{[%clk 0:01:23.3]} 32... h5 {[%clk 0:01:46.9]} 33. Qe2 {[%clk 0:01:16.5]} 33...
Qc7 {[%clk 0:01:41.8]} 34. Ne3 {[%clk 0:01:01.8]} 34... Qc6 {[%clk 0:01:31.5]}
35. Nd5 {[%clk 0:01:00.7]} 35... Rc2 {[%clk 0:01:08.5]} 36. Qe3 {[%clk
0:00:58.1]} 36... Bd8 {[%clk 0:01:04.9]} 37. Rdc1 {[%clk 0:00:48.9]} 37... Rxc1
{[%clk 0:00:56]} 38. Rxc1 {[%clk 0:00:48.3]} 38... Qb7 {[%clk 0:00:54]} 39. Rc3
{[%clk 0:00:42.9]} 39... Bb6 {[%clk 0:00:50.7]} 40. Qf3 {[%clk 0:00:25.3]} 40...
Bd8 {[%clk 0:00:50.5]} 41. Qd3 {[%clk 0:00:22.2]} 41... Qd7 {[%clk 0:00:43]} 42.
Qc4 {[%clk 0:00:20.5]} 42... Qg4 {[%clk 0:00:38.3]} 43. Rf3 {[%clk 0:00:18.5]}
43... Rb7 {[%clk 0:00:29.9]} 44. Qc6 {[%clk 0:00:14.3]} 44... Qd7 {[%clk
0:00:29.3]} 45. Qxd7 {[%clk 0:00:13.9]} 45... Rxd7 {[%clk 0:00:30.2]} 46. Rc3
{[%clk 0:00:12.2]} 46... Rb7 {[%clk 0:00:29.5]} 47. f3 {[%clk 0:00:12]} 47...
Kf8 {[%clk 0:00:25]} 48. Kf1 {[%clk 0:00:12.3]} 48... Ke8 {[%clk 0:00:24.5]} 49.
Ke2 {[%clk 0:00:12.6]} 49... Kd7 {[%clk 0:00:24.6]} 50. Kd3 {[%clk 0:00:13.2]}
50... Rb8 {[%clk 0:00:22.3]} 51. Kc2 {[%clk 0:00:12.1]} 51... Rb7 {[%clk
0:00:22.5]} 52. Rc5 {[%clk 0:00:12.1]} 52... Rb8 {[%clk 0:00:20.7]} 53. Kc3
{[%clk 0:00:11.6]} 53... Rb7 {[%clk 0:00:20.6]} 54. Kc4 {[%clk 0:00:12.1]} 54...
Rb8 {[%clk 0:00:20]} 55. Rb5 {[%clk 0:00:12]} 55... Rc8+ {[%clk 0:00:20.5]} 56.
Rc5 {[%clk 0:00:12.4]} 56... Rb8 {[%clk 0:00:20.7]} 57. b4 {[%clk 0:00:11.6]}
57... axb4 {[%clk 0:00:20.1]} 58. Nxb4 {[%clk 0:00:11.8]} 58... Be7 {[%clk
0:00:16.8]} 59. Rd5+ {[%clk 0:00:11.3]} 59... Ke6 {[%clk 0:00:16.5]} 60. Rxe5+
{[%clk 0:00:08.1]} 60... Kxe5 {[%clk 0:00:09.1]} 61. Nc6+ {[%clk 0:00:07.9]}
61... Kd6 {[%clk 0:00:09.4]} 62. Nxb8 {[%clk 0:00:08]} 62... Kc7 {[%clk
0:00:07.6]} 63. Na6+ {[%clk 0:00:08.1]} 63... Kb6 {[%clk 0:00:07.4]} 64. Nb4
{[%clk 0:00:08.5]} 64... Bd6 {[%clk 0:00:07.4]} 65. f4 {[%clk 0:00:06.8]} 65...
Ka5 {[%clk 0:00:07.6]} 66. Nd3 {[%clk 0:00:06.4]} 66... Kxa4 {[%clk 0:00:07.9]}
67. Kd5 {[%clk 0:00:06.8]} 67... Bb8 {[%clk 0:00:06.3]} 68. Ne5 {[%clk
0:00:07.1]} 68... g5 {[%clk 0:00:02.8]} 69. hxg5 {[%clk 0:00:06.8]} 69... Bxe5
{[%clk 0:00:03.2]} 70. Kxe5 {[%clk 0:00:06.8]} 70... f6+ {[%clk 0:00:02.1]} 71.
Kxf6 {[%clk 0:00:07.1]} 71... h4 {[%clk 0:00:03]} 72. gxh4 {[%clk 0:00:07.2]}
1-0

[Event "*** Titled Tuesday Blitz"]
[Site "Chess.com"]
[Date "2020.11.03"]
[Round "4"]
[White "dretch"]
[Black "Azerichess"]
[Result "1/2-1/2"]
[WhiteElo "2824"]
[BlackElo "3013"]
[TimeControl "180+1"]
[EndTime "10:43:51 PST"]
[Termination "Game drawn by stalemate"]

1. d4 {[%clk 0:03:00.9]} 1... Nf6 {[%clk 0:02:56.4]} 2. c4 {[%clk 0:03:01]} 2...
e6 {[%clk 0:02:56.2]} 3. Nc3 {[%clk 0:03:01.1]} 3... Bb4 {[%clk 0:02:55.4]} 4.
Qc2 {[%clk 0:03:01.2]} 4... b6 {[%clk 0:02:52.5]} 5. e4 {[%clk 0:02:59.9]} 5...
c5 {[%clk 0:02:52.8]} 6. a3 {[%clk 0:02:58.8]} 6... Bxc3+ {[%clk 0:02:32.7]} 7.
bxc3 {[%clk 0:02:59.7]} 7... O-O {[%clk 0:02:12.4]} 8. e5 {[%clk 0:02:44.4]}
8... Ne8 {[%clk 0:02:12]} 9. Bd3 {[%clk 0:02:44.4]} 9... f5 {[%clk 0:02:10.5]}
10. Ne2 {[%clk 0:02:40.1]} 10... Nc6 {[%clk 0:02:06.1]} 11. O-O {[%clk
0:02:38.6]} 11... Ba6 {[%clk 0:02:02.7]} 12. Be3 {[%clk 0:02:31]} 12... Rc8
{[%clk 0:02:00.7]} 13. Rfd1 {[%clk 0:02:24.1]} 13... Qe7 {[%clk 0:01:54.9]} 14.
Qa4 {[%clk 0:02:20.4]} 14... Bb7 {[%clk 0:01:47.9]} 15. f3 {[%clk 0:01:56.5]}
15... Na5 {[%clk 0:01:37.1]} 16. dxc5 {[%clk 0:01:52.4]} 16... Rxc5 {[%clk
0:01:36.7]} 17. Qb4 {[%clk 0:01:43.7]} 17... Nc7 {[%clk 0:01:19.4]} 18. Bxc5
{[%clk 0:01:41.5]} 18... Qxc5+ {[%clk 0:01:20.3]} 19. Qxc5 {[%clk 0:01:41.6]}
19... bxc5 {[%clk 0:01:21.2]} 20. h4 {[%clk 0:01:29.8]} 20... Na8 {[%clk
0:01:20.6]} 21. Rab1 {[%clk 0:01:21.7]} 21... Ba6 {[%clk 0:01:17.3]} 22. Nf4
{[%clk 0:01:15.1]} 22... Nb6 {[%clk 0:01:16.9]} 23. Bf1 {[%clk 0:01:14.4]} 23...
Kf7 {[%clk 0:01:15]} 24. Rd6 {[%clk 0:01:11.3]} 24... Ke7 {[%clk 0:01:12.2]} 25.
h5 {[%clk 0:01:08.6]} 25... Bxc4 {[%clk 0:01:06.8]} 26. Nd3 {[%clk 0:00:52.7]}
26... Nb7 {[%clk 0:00:57.1]} 27. Rdxb6 {[%clk 0:00:51.2]} 27... axb6 {[%clk
0:00:58]} 28. Rxb6 {[%clk 0:00:51.6]} 28... Bd5 {[%clk 0:00:55.7]} 29. Nf4
{[%clk 0:00:41.3]} 29... Bc6 {[%clk 0:00:55.8]} 30. Bb5 {[%clk 0:00:35.2]} 30...
Na5 {[%clk 0:00:54.7]} 31. a4 {[%clk 0:00:33.8]} 31... Ra8 {[%clk 0:00:52]} 32.
Nd3 {[%clk 0:00:32.6]} 32... Bxb5 {[%clk 0:00:40.7]} 33. axb5 {[%clk 0:00:32.6]}
33... Nc4 {[%clk 0:00:37.1]} 34. Rb7 {[%clk 0:00:30]} 34... Rc8 {[%clk
0:00:31.4]} 35. b6 {[%clk 0:00:24]} 35... Rc6 {[%clk 0:00:30.6]} 36. Rc7 {[%clk
0:00:19.4]} 36... Rxb6 {[%clk 0:00:30.6]} 37. Rxc5 {[%clk 0:00:17.9]} 37... Rb1+
{[%clk 0:00:29.3]} 38. Kf2 {[%clk 0:00:16.7]} 38... Nb6 {[%clk 0:00:26.2]} 39.
Rc7 {[%clk 0:00:16.1]} 39... Nd5 {[%clk 0:00:26.3]} 40. Rc8 {[%clk 0:00:16.1]}
40... Rd1 {[%clk 0:00:19.8]} 41. Ke2 {[%clk 0:00:16.2]} 41... Ra1 {[%clk
0:00:20.4]} 42. Kf2 {[%clk 0:00:10.4]} 42... Ra2+ {[%clk 0:00:20.5]} 43. Kg3
{[%clk 0:00:10.5]} 43... Ra3 {[%clk 0:00:21.1]} 44. Nf4 {[%clk 0:00:09.4]} 44...
Nxc3 {[%clk 0:00:17.2]} 45. Rh8 {[%clk 0:00:09.1]} 45... Nd5 {[%clk 0:00:10.8]}
46. Rxh7 {[%clk 0:00:08.2]} 46... Nxf4 {[%clk 0:00:10.2]} 47. Kxf4 {[%clk
0:00:08.3]} 47... Kf8 {[%clk 0:00:10.3]} 48. Rh8+ {[%clk 0:00:08.4]} 48... Kf7
{[%clk 0:00:10.1]} 49. g4 {[%clk 0:00:08.3]} 49... Ra4+ {[%clk 0:00:07.6]} 50.
Kg5 {[%clk 0:00:08]} 50... fxg4 {[%clk 0:00:08.5]} 51. fxg4 {[%clk 0:00:08.8]}
51... Re4 {[%clk 0:00:08.8]} 52. Rd8 {[%clk 0:00:06.8]} 52... Rxe5+ {[%clk
0:00:09.7]} 53. Kf4 {[%clk 0:00:07.1]} 53... Rd5 {[%clk 0:00:09.9]} 54. g5
{[%clk 0:00:07.7]} 54... Rd4+ {[%clk 0:00:09.6]} 55. Kf3 {[%clk 0:00:08]} 55...
Rd3+ {[%clk 0:00:09.6]} 56. Kf4 {[%clk 0:00:07.7]} 56... Rd4+ {[%clk 0:00:05.3]}
57. Kg3 {[%clk 0:00:07.7]} 57... Ke7 {[%clk 0:00:05.1]} 58. Rg8 {[%clk
0:00:07.3]} 58... Kf7 {[%clk 0:00:05.1]} 59. Rd8 {[%clk 0:00:07.5]} 59... Rd5
{[%clk 0:00:04.8]} 60. Kf4 {[%clk 0:00:07.3]} 60... Ke7 {[%clk 0:00:04.1]} 61.
Rg8 {[%clk 0:00:07.1]} 61... Rf5+ {[%clk 0:00:04.3]} 62. Kg4 {[%clk 0:00:07.2]}
62... Kf7 {[%clk 0:00:04.6]} 63. Rd8 {[%clk 0:00:07.4]} 63... d5 {[%clk
0:00:04.6]} 64. Rd7+ {[%clk 0:00:07.6]} 64... Kf8 {[%clk 0:00:04.8]} 65. g6
{[%clk 0:00:07.3]} 65... Rf1 {[%clk 0:00:04.2]} 66. Ra7 {[%clk 0:00:06]} 66...
Rg1+ {[%clk 0:00:01.9]} 67. Kf4 {[%clk 0:00:05.6]} 67... Rf1+ {[%clk 0:00:02.5]}
68. Kg4 {[%clk 0:00:06]} 68... Rg1+ {[%clk 0:00:02.4]} 69. Kf4 {[%clk
0:00:06.3]} 69... Rf1+ {[%clk 0:00:03.3]} 70. Ke5 {[%clk 0:00:06.6]} 70... Kg8
{[%clk 0:00:02.4]} 71. Kxe6 {[%clk 0:00:05.2]} 71... d4 {[%clk 0:00:03]} 72. Rd7
{[%clk 0:00:04.6]} 72... Rf4 {[%clk 0:00:03.4]} 73. Ke5 {[%clk 0:00:04.4]} 73...
Rf8 {[%clk 0:00:04.3]} 74. Rxd4 {[%clk 0:00:04.4]} 74... Re8+ {[%clk 0:00:04.8]}
75. Kf5 {[%clk 0:00:05]} 75... Rf8+ {[%clk 0:00:05.7]} 76. Kg5 {[%clk
0:00:05.6]} 76... Ra8 {[%clk 0:00:06.2]} 77. Rd7 {[%clk 0:00:06.1]} 77... Ra5+
{[%clk 0:00:05.8]} 78. Kf4 {[%clk 0:00:06.7]} 78... Ra4+ {[%clk 0:00:06.3]} 79.
Ke5 {[%clk 0:00:07.2]} 79... Ra5+ {[%clk 0:00:06.7]} 80. Ke6 {[%clk 0:00:07.2]}
80... Ra8 {[%clk 0:00:06.5]} 81. Ke7 {[%clk 0:00:07.6]} 81... Rb8 {[%clk
0:00:07.1]} 82. Rd8+ {[%clk 0:00:07.7]} 82... Rxd8 {[%clk 0:00:07.2]} 83. Kxd8
{[%clk 0:00:08.6]} 83... Kh8 {[%clk 0:00:07.7]} 84. Ke7 {[%clk 0:00:08.8]} 84...
Kg8 {[%clk 0:00:08.6]} 85. Ke8 {[%clk 0:00:09.2]} 85... Kh8 {[%clk 0:00:09.1]}
86. h6 {[%clk 0:00:09.5]} 86... Kg8 {[%clk 0:00:10]} 87. h7+ {[%clk 0:00:09.5]}
87... Kh8 {[%clk 0:00:10.2]} 88. Kf8 {[%clk 0:00:09.9]} 1/2-1/2